Cogmind - Beta 15 X1 @@@ ROGUE MODE // 2024.11.19 @ 03:37:23 Player: H3-RMN Result: Core destroyed Performance ------------- Evolutions (9) 4500 Regions Visited (18) 3600 Robots Destroyed (329) 1645 Value Destroyed (15950) 15950 Prototype IDs (72) 1440 Alien Tech Used (11) 2200 Bonus (21023) 21023 TOTAL SCORE: 50358 Bonus ------- High Alert Combat Kills 6132 Follower Combat Kills 1569 Entered DSFs 500 Network Hubs Disabled 200 Built Enhanced Grunts 300 A7 Reached Mainframe 300 Met R17 at Cetus 500 Met R17 at Research 2000 Met MAIN.C 5000 Destroyed MAIN.C Shell 5000 Friendly Fire -478 Cogmind --------- Core Integrity 0/1600 Matter 215/300 Energy 170/190 System Corruption 0% +Membrane Temperature Warm (118) Movement Core (1200) Ox23 Location -1/Command Parts ------- > --- POWER (3) -------- Light Quantum Reactor > --- PROPULSION (6) --- (None) > --- UTILITY (12) ----- Armored Scrap Engine Advanced Heat Sink High-capacity Storage Unit Advanced Targeting Computer Armor Integrity Analyzer Graphene Brace > --- WEAPON (4) ------- Core Cannon Vibroblade > --- INVENTORY (24) --- Experimental Q-thruster Experimental Q-thruster Experimental Matter Compressor (500) Improved Armor Integrity Analyzer Experimental Transmission Jammer Transdimensional Reconstructor Gamma Bomb Array Peak State ------------ > --- POWER ------------ Fusion-Antimatter Core > --- PROPULSION ------- Armored Heavy Treads Flying QT-Biometal Exoskeleton > --- UTILITY ---------- Armored Scrap Engine High-capacity Storage Unit Advanced Energy Well Advanced Signal Interpreter Long-range Terrain Scanner Experimental Core Analyzer Advanced Particle Charger Experimental Transmission Jammer Graphene Brace Experimental EM Disruption Field Advanced Force Field > --- WEAPON ----------- Shotgun Charged Disruptor Construct/C Hpw. Energy Nova Construct/G Gravity Flail Vibroblade > --- INVENTORY -------- Improved Quantum Reactor Cooled Q-thruster Experimental Q-thruster Experimental Q-thruster Experimental Matter Compressor Advanced Sensor Array Improved Armor Integrity Analyzer Quantum Capacitor Stasis Canceller Experimental Reaction Control System Phase Armor Advanced System Shield Transdimensional Reconstructor Transdimensional Reconstructor Integrity Redistributor Subatomic Replicator Nova Cannon Core Cannon Gamma Bomb Array Sigix Terminator [Rating: 226] Favorites ----------- Power Constructs Engine Subdweller Power Source Power Core Constructs Reactor Micro Antimatter Reactor Propulsion Constructs Treads Spiked Treads Leg Light Armored Exoskeleton Wheel Armored Wheel Hover Unit Improved Airjet Flight Unit Constructs Utility High-capacity Storage Unit Device Armored Scrap Engine Storage High-capacity Storage Unit Processor Core Analyzer Hackware Improved Hacking Suite Protection Centrium Medium Armor Plating Artifact Phase Armor Weapon Constructs Energy Gun Constructs Energy Cannon Constructs Ballistic Gun Subdweller Machine Gun Ballistic Cannon Compact Mass Driver Launcher Rocket Launcher Special Weapon Mining Laser Impact Weapon Gravity Flail Slashing Weapon Vibroblade Piercing Weapon Enhanced Force Lance Special Melee Weapon Advanced Datajack Build | -11 -10 -10 -10 -7 -5 -5 -5 -5 -5 -4 -4 -3 -3 -3 -2 -2 -1 -1 ------- Run | Yrd Mat Min Sub Rec Fac Ext Cet Arc Hub Fac DSF Res Qua Sec Res Tes Acc Com Slots Evolved 18 | . . . . . 10 . . . . 2 . 2 . . 2 . 2 . Power 2 | . . . . . 1 . . . . . . . . . 1 . . . Propulsion 4 | . . . . . 2 . . . . 1 . 1 . . . . . . Utility 10 | . . . . . 6 . . . . 1 . 1 . . . . 2 . Weapon 2 | . . . . . 1 . . . . . . . . . 1 . . . Parts Attached 245 | 5 9 2 13 3 38 15 3 10 1 3 6 29 11 16 16 23 23 19 Power 18 | . 2 . 5 . . 1 . . . . 1 2 1 1 1 2 . 2 Engine 7 | . 2 . 5 . . . . . . . . . . . . . . . Core 2 | . . . . . . 1 . . . . . 1 . . . . . . Reactor 9 | . . . . . . . . . . . 1 1 1 1 1 2 . 2 Propulsion 39 | 2 1 . 2 2 5 1 . . . . 1 6 . 3 1 4 8 3 Treads 8 | 1 . . 2 . . . . . . . 1 . . . . 1 3 . Leg 8 | . . . . 1 1 . . . . . . 1 . . . 1 1 3 Wheel 3 | 1 1 . . 1 . . . . . . . . . . . . . . Hover 7 | . . . . . 4 1 . . . . . . . . . 1 1 . Flight 13 | . . . . . . . . . . . . 5 . 3 1 1 3 . Utility 128 | 2 3 . 1 1 23 9 2 7 1 3 3 18 7 6 10 9 12 11 Device 65 | 1 . . 1 1 8 5 . 7 . 1 3 4 5 4 5 7 7 6 Storage 8 | 1 1 . . . . . . . . . . 4 1 . . . 1 . Processor 14 | . . . . . 2 1 . . 1 . . 1 . . 3 1 2 3 Hackware 18 | . . . . . 3 . . . . 2 . 7 1 . 2 1 2 . Protection 22 | . 2 . . . 10 3 2 . . . . 2 . 1 . . . 2 Artifact 1 | . . . . . . . . . . . . . . 1 . . . . Weapon 60 | 1 3 2 5 . 10 4 1 3 . . 1 3 3 6 4 8 3 3 Energy Gun 11 | 1 . . . . 5 . 1 . . . 1 1 . . 1 1 . . Energy Cannon 9 | . . . 1 . 1 1 . . . . . 1 1 1 1 1 1 . Ballistic Gun 10 | . 2 2 2 . 1 . . 1 . . . . . . 1 1 . . Ballistic Cannon 2 | . . . . . . . . . . . . . . . . 1 1 . Launcher 5 | . 1 . 1 . 1 . . . . . . . 1 . . . . 1 Special Weapon 2 | . . . 1 . . . . . . . . . . . . 1 . . Impact Weapon 4 | . . . . . 1 . . . . . . . . 1 . 1 . 1 Slashing Weapon 10 | . . . . . 1 3 . 1 . . . 1 . 3 . . . 1 Piercing Weapon 4 | . . . . . . . . . . . . . . 1 . 2 1 . Special Melee Weapon 3 | . . . . . . . . 1 . . . . 1 . 1 . . . Unidentified Prototypes 53 | . . . 1 1 4 1 2 1 . . 1 8 3 5 6 13 5 2 Corrupted Parts 6 | . . . . . 2 . 1 1 . . 2 . . . . . . . System Corruption 28 | . . . . . 4 . 12 5 . . 7 . . . . . . . Parts Lost 81 | . 2 . 4 . 11 8 . . . . 6 2 . 10 1 1 5 31 Power 12 | . . . 2 . 2 1 . . . . 2 . . . . . . 5 Propulsion 17 | . . . 1 . 1 1 . . . . 1 . . 4 . . . 9 Utility 30 | . 1 . . . 4 4 . . . . 1 . . 4 1 1 3 11 Weapon 22 | . 1 . 1 . 4 2 . . . . 2 2 . 2 . . 2 6 Highest Loss Streak 22 | . 1 . 1 . 5 4 . . . . 4 1 . 5 1 1 1 22 To Critical Strikes 5 | . . . . . 1 . . . . . 2 . . 1 . 1 . . Average Backups 17 | 4 14 20 18 14 14 17 18 18 18 18 18 18 17 16 20 20 19 18 Power . | 1 1 1 . . . . . . . . . . . . . . 1 . Propulsion 2 | 1 4 6 4 1 3 2 . 1 1 1 . . 1 . 1 2 3 2 Utility 9 | . 3 5 5 8 8 6 7 12 14 14 13 13 12 8 8 7 7 7 Weapon 4 | 1 4 6 6 5 1 6 9 3 3 3 4 4 4 4 4 4 4 4 Tool/Special . | . . . . . . . . . . . . . . . . . . . Unused Backups 96 | . 1 1 4 24 17 10 9 3 3 1 . 9 2 . 3 2 1 6 Power 8 | . . . . 1 1 . 1 . 1 . . 4 . . . . . . Propulsion 26 | . . . 1 4 8 8 2 . . . . . . . 1 . . 2 Utility 29 | . 1 . 1 10 6 . 1 . 2 1 . 2 1 . . 1 1 2 Weapon 26 | . . 1 1 8 2 2 5 3 . . . 3 1 . . . . . Tool/Special 7 | . . . 1 1 . . . . . . . . . . 2 1 . 2 Average Slot Usage (%) 74 | . 92 100 92 82 58 63 66 67 69 63 58 73 79 77 79 69 70 69 Engine 8 | . 11 14 30 33 1 1 . . . . . . . . . 3 . . Reactor 2 | . . . . . . . 2 4 5 5 3 4 8 9 10 1 4 3 Treads 4 | . 14 14 10 1 . . 5 5 4 2 4 . . . . 4 6 1 Leg 1 | . . . . 8 1 3 . . 1 2 . . . . . . . 8 Wheel 2 | . 14 14 10 2 . . . . . . . . . . . . . . Flight 2 | . . . . . . . . . . . . 11 14 15 21 5 . . Device 11 | . 3 . 9 10 10 14 11 10 9 14 12 8 10 16 18 20 24 19 Storage 6 | . 14 14 10 7 4 5 5 5 5 5 5 4 4 6 6 4 5 7 Processor 8 | . . . . . 5 11 17 17 17 15 15 9 9 7 9 8 10 13 Hackware 3 | . . . . . 3 . . . . 2 3 18 17 7 1 4 2 . Protection 2 | . 8 14 1 . 10 3 4 3 6 3 2 . . 1 . . . . Energy Gun 3 | . 4 . . . 1 . . 9 10 5 5 9 9 4 . . . 1 Energy Cannon 3 | . . . 8 9 1 2 . . . 3 . 2 . 1 . 5 10 1 Ballistic Gun 4 | . 14 18 10 8 . 2 8 5 4 . . . . . . . . . Slashing Weapon 1 | . . . . . . 3 . . . . . . 3 2 3 3 1 4 Peak Build Rating 226 | 6 12 12 29 37 106 98 123 121 120 125 125 156 162 188 196 198 226 225 Average Rating 101 | 3 9 11 25 33 80 85 102 114 117 121 103 141 159 164 178 179 214 197 On Entrance 100 | . 6 12 12 29 34 93 83 116 116 116 124 120 156 160 152 173 183 225 Naked Turns . | . . . . . . . . . . . . . . . . . . . Heaviest Build 153 | 8 53 53 75 75 78 79 96 96 102 97 97 85 81 125 97 110 153 149 Greatest Support 182 | 10 12 12 12 35 85 87 152 152 107 144 144 155 154 154 99 132 173 182 Greatest Overweight (x) 31 | . 4 4 6 6 1 1 1 31 1 . . . . . . 1 1 1 Average Overweight (x) 1 | . 2 4 5 2 . . . 10 . . . . . . . . . . Largest Inventory Capacity 24 | 8 20 20 20 20 20 20 20 20 20 20 20 20 20 24 24 24 24 24 Average Capacity 19 | 6 17 20 20 16 17 20 20 20 20 20 20 20 20 20 24 24 24 24 Most Carried 24 | 8 20 20 20 20 20 20 20 20 20 20 20 20 20 24 24 24 24 24 Average Carried 19 | 4 14 20 19 16 14 17 19 19 19 19 19 19 19 19 23 23 23 22 Final Capacity 24 | 8 20 20 20 5 20 20 20 20 20 20 20 20 20 24 24 24 24 24 Final Carried 24 | 8 20 20 20 5 15 20 20 20 20 20 20 18 20 24 23 24 24 7 Scrap Engine Consumption 303 | . . . . 32 62 35 21 17 10 3 36 34 5 1 4 19 19 5 Constructs Created 21 | . . . . 3 3 2 1 1 . . 3 2 . 1 . 3 1 1 Constructs Modified 96 | . . . . 6 19 18 6 10 3 2 4 11 . . . 12 3 2 Class Distribution -------------------- 28% | Commander-Construct 20% | Mutant 12% | Construct 8% | Scavenger-Mutant 8% | Commander-Mutant 5% | Hacker-Construct 4% | Hacker-Sprinter Dominant Class ---------------- Mutant | -10/Materials Mutant | -10/Mines Mutant | -10/Subcaves Commander-Mutant | -7/Recycling Construct | -5/Factory Commander-Construct | -5/Extension Commander-Construct | -5/Cetus Commander-Construct | -5/Archives Construct | -5/Hub_04(d) Construct | -4/Factory Mutant | -4/DSF Hacker-Construct | -3/Research Hacker-Sprinter | -3/Quarantine Hacker-Sprinter | -3/Section 7 Ninja | -2/Research Assassin | -2/Testing Construct | -1/Access Mutant | -1/Command Resources | -11 -10 -10 -10 -7 -5 -5 -5 -5 -5 -4 -4 -3 -3 -3 -2 -2 -1 -1 ----------- Run | Yrd Mat Min Sub Rec Fac Ext Cet Arc Hub Fac DSF Res Qua Sec Res Tes Acc Com Matter Collected 7106 | 250 161 211 432 85 760 291 168 203 102 . 337 1573 266 676 317 440 513 321 Remotely 10 | . . . . . . . . . . . . . . . . . 10 . Salvage Created 15266 | 101 187 221 564 491 2344 696 . 417 718 . 777 1360 401 546 690 1147 1906 2700 Parts 721 | 7 15 17 48 21 116 26 . 36 41 . 38 56 21 27 27 43 105 77 Haulers Intercepted 11 | . . . . 1 1 . . . 1 . 1 3 . . 1 . 3 . Recyclers Shooed 11 | . 3 1 . . 2 . . . . . . 1 1 1 1 1 . . Parts Field Recycled . | . . . . . . . . . . . . . . . . . . . Retrieved Matter . | . . . . . . . . . . . . . . . . . . . Parts Self-Destructed 8 | . . . 8 . . . . . . . . . . . . . . . Prevented . | . . . . . . . . . . . . . . . . . . . Kills | -11 -10 -10 -10 -7 -5 -5 -5 -5 -5 -4 -4 -3 -3 -3 -2 -2 -1 -1 ------- Run | Yrd Mat Min Sub Rec Fac Ext Cet Arc Hub Fac DSF Res Qua Sec Res Tes Acc Com Combat Hostiles Destroyed 265 | . 9 6 17 5 37 10 . 1 6 . 12 13 . 7 8 11 19 104 Melee 26 | . . . . . 7 2 . . . . . . . 1 3 6 1 6 Guns 28 | . 2 . 5 . 4 1 . 1 6 . 4 5 . . . . . . Cannons 55 | . . . 6 4 20 4 . . . . 4 6 . . . . 7 4 AOE 134 | . 7 6 6 . 3 . . . . . 4 . . 4 1 1 9 93 Classes Destroyed 24 | 2 3 . 3 2 5 . . . 1 . 1 1 . 1 1 . 1 3 Worker 5 | . . . . . 1 . . . 1 . . . 1 . . 2 . . Builder 10 | . . . . 1 3 . . . 2 . . 1 . . . . 3 . Tunneler 3 | 2 . . . . . . . . . . . . . . . . 1 . Hauler 11 | . . . . 1 1 . . . 1 . 1 3 . . 1 . 3 . Recycler 14 | 1 1 3 . 1 . . . . 1 . . 1 2 . . 2 2 . Carrier 12 | . . . . . . . . . . . . . . . . . . 12 Mechanic 1 | . . . . . . . . . . . . . . . . . 1 . Operator 22 | . 1 . . . 2 . . 9 2 . . 2 1 . . 2 2 1 Turret 2 | . . . 2 . . . . . . . . . . . . . . . Watcher 23 | . . . . . 1 1 . . 1 . . . 2 3 6 1 5 3 Swarmer 44 | . 6 6 2 . 6 . . . . . 5 5 . 4 4 . 6 . Cutter 13 | . . . . . . . . . . . . . . . 2 . 7 4 Saboteur 6 | . . . . . . . . . . . . . . . . . . 6 Grunt 87 | . 3 . . . 18 3 . . 2 . 3 1 . . . 1 . 56 Brawler 1 | . . . . . . . . . . . . . . . . . . 1 Duelist 1 | . . . . . 1 . . . . . . . . . . . . . Researcher 1 | . . . . . . . . . . . . . . 1 . . . . Sentry 19 | . . . 1 5 2 3 . 1 2 . . 2 . . . . 2 1 Specialist 10 | . . . . . . . . . 2 . . . . . . 2 . 6 Hunter 19 | . . . . . 4 3 . . . . 2 2 . 2 . 3 . 3 Programmer 43 | . . . . . 6 . . . . . 1 1 . . 2 5 4 24 Heavy 1 | . . . . . . . . . . . 1 . . . . . . . S7 Guard 1 | . . . . . . . . . . . . . . 1 . . . . Striker 4 | . . . . . . . . . . . . 2 . . . . . 2 Subdweller 14 | . . . 14 . . . . . . . . . . . . . . . Thug 1 | . . . . . . 1 . . . . . . . . . . . . Best Kill Streak 101 | 3 3 3 6 2 10 3 . 3 4 . 5 5 1 5 4 3 8 101 Combat Bots Only 88 | . 3 3 3 1 4 3 . 1 2 . 5 5 . 4 3 2 7 88 Max Kills in Single Turn 101 | 1 3 2 3 1 2 1 . 1 3 . 2 2 1 3 1 1 4 101 Gunslinging . | . . . . . . . . . . . . . . . . . . . Exploded 88 | . 3 2 3 . 2 . . . . . 2 . . 3 1 1 4 88 Melee 2 | . . . . . 1 1 . . . . . . . 1 1 1 1 2 Uniques/NPCs Destroyed 1 | . . . . . . . . . . . . . . . . . . 1 MAIN.C Shell (-1/Command) Combat | -11 -10 -10 -10 -7 -5 -5 -5 -5 -5 -4 -4 -3 -3 -3 -2 -2 -1 -1 -------- Run | Yrd Mat Min Sub Rec Fac Ext Cet Arc Hub Fac DSF Res Qua Sec Res Tes Acc Com Hostile Shots Fired 2270 | . 51 12 52 29 334 128 22 5 43 . 208 146 6 305 49 108 317 455 Missed 780 | . 13 2 17 14 109 27 11 3 12 . 52 64 5 148 18 36 111 138 Damage Taken 27228 | 18 339 104 643 95 4300 1820 264 50 833 . 2986 1738 29 2154 571 563 2188 8533 Core 3830 | 9 26 . 156 12 611 181 . . 153 . 408 294 . 372 39 86 107 1376 Absorbed by Shields 4720 | . . . . 82 21 71 107 . . . 310 54 . 1079 301 130 1583 982 Redirected to Core 603 | . . . . . . . . . . . . . . 114 . 57 . 432 Redirected to Shielding 92 | . . . . . . . . . . . . . . . . . . 92 Ignored by Resistances 2881 | . . . . . . . . . . . . . . 255 201 428 1490 507 Regen/Repaired (Parts) 5708 | . . . . 100 842 602 283 12 95 249 799 833 . 100 . 432 837 524 Core Remaining (%) 53 | 96 . . . 18 . . . . 5 . 64 . . 47 . 91 . . Volleys Fired 558 | 5 33 33 43 20 95 34 9 10 26 . 56 94 7 11 4 9 51 18 Largest 3 | 1 2 2 2 2 3 2 2 2 3 . 2 3 2 1 1 2 3 1 Hottest 300 | 40 60 40 110 110 200 202 240 102 152 . 198 185 120 300 120 181 177 300 Shots Fired 838 | 5 56 49 70 29 110 34 14 16 70 . 88 173 8 11 4 10 73 18 Gun 399 | 5 47 42 32 9 18 11 6 16 66 . 41 99 7 . . . . . Cannon 359 | . . . 26 20 84 23 5 . 4 . 45 49 1 9 2 10 68 13 Launcher 76 | . 9 7 8 . 8 . 3 . . . 2 25 . 2 2 . 5 5 Special 4 | . . . 4 . . . . . . . . . . . . . . . Kinetic 305 | . 30 42 32 19 53 11 5 10 44 . 59 . . . . . . . Thermal 305 | . . . 30 10 34 21 1 6 22 . 27 79 6 1 . 10 44 14 Explosive 24 | . 9 7 8 . . . . . . . . . . . . . . . Electromagnetic 204 | 5 17 . . . 23 2 8 . 4 . 2 94 2 10 4 . 29 4 Robot Hit Streak 17 | 5 6 7 14 7 17 8 5 4 16 . 12 13 1 2 . 3 11 7 Robot Miss Streak 7 | . 7 4 1 3 6 3 2 1 4 . 4 3 1 3 4 5 7 3 Penetration Max 2 | . . . . . . . . . 1 . 1 . . . . . . 2 Secondary Targets 1 | . . . . . . . . . 1 . . . . . . . . . Max Gunslinging Chain 1 | . . . . . . . . . 1 . . . . . . . . . Capacitor 2 | . . . . . . . . . . . . . . . . . . 2 Shots Hit Robots 795 | 5 28 29 38 20 126 46 7 24 45 . 59 95 14 31 26 35 75 92 Core Hits 539 | 4 15 12 29 14 106 22 7 10 29 . 27 46 5 22 8 13 59 111 Critical Kills 13 | . . . . 1 3 . . . 2 . 2 . . . 1 1 1 2 Critical Parts Destroyed 32 | . . . . 1 3 3 . . . . 1 1 . 3 3 4 2 11 Critical Strikes 73 | . . . . 2 9 4 . 1 4 . 3 4 . 5 6 8 6 21 Burn 3 | . . . . . . . . 1 2 . . . . . . . . . Meltdown 2 | . . . . 1 . . . . . . . . . . . . 1 . Destroy 21 | . . . . 1 1 . . . 2 . 3 1 . 1 . . . 12 Corrupt 5 | . . . . . . . . . . . . 3 . . . . 2 . Smash 25 | . . . . . 5 3 . . . . . . . 2 4 5 2 4 Sever 16 | . . . . . 3 1 . . . . . . . 2 2 3 1 4 Impale 1 | . . . . . . . . . . . . . . . . . . 1 Melee Attacks 472 | . . . . . 46 41 30 13 . . . . 34 55 47 56 50 100 Impact 196 | . . . . . 25 26 30 . . . . . . 16 30 28 34 7 Slashing 250 | . . . . . 21 15 . 12 . . . . 32 39 17 27 12 75 Piercing 23 | . . . . . . . . . . . . . . . . 1 4 18 Sneak Attacks 45 | . . . . . 2 1 . 12 . . . . 6 2 3 7 9 3 Combat Hostiles 4 | . . . . . . . . . . . . . . 1 . 1 . 2 Follow-up Attacks 27 | . . . . . . 2 . . . . . . . . 5 4 4 12 Damage Inflicted 129218 | 107 889 585 1390 639 4364 1710 304 1409 2068 . 2534 2850 975 2166 1916 2491 4424 98397 Guns 5674 | 70 271 217 372 132 367 65 82 293 1518 . 685 1570 32 . . . . . Cannons 9510 | . . . 419 494 2261 599 81 . . . 1656 791 . 150 . 130 1281 1648 Explosions 95869 | 37 618 368 599 . 382 79 141 . 550 . 193 472 . 214 99 . 703 91414 Melee 17995 | . . . . . 1354 967 . 1116 . . . . 943 1802 1817 2361 2338 5297 Ramming 170 | . . . . 13 . . . . . . . 17 . . . . 102 38 Kinetic 5733 | . 150 217 372 408 1299 65 82 200 950 . 1990 . . . . . . . Thermal 99294 | 37 70 . 419 218 1044 640 . 93 568 . 428 1743 . 150 . 130 864 92890 Explosive 1515 | . 548 368 599 . . . . . . . . . . . . . . . Electromagnetic 4511 | 70 121 . . . 667 38 222 . 550 . 116 1090 32 214 99 . 1120 172 Impact 6220 | . . . . . 739 509 . . . . . . . 590 1181 1179 1760 262 Slashing 10975 | . . . . . 615 458 . 1116 . . . . 943 1212 636 1182 392 4421 Piercing 800 | . . . . . . . . . . . . . . . . . 186 614 Highest Corruption 17 | . 1 1 1 1 5 5 17 17 3 . 8 2 2 . . . . . Average Corruption 2 | . 1 1 1 1 1 5 6 8 1 . 4 2 1 . . . . . Corruption Purged 29 | . . . . . 5 . . 22 . . . . 2 . . . . . Corruption Blocked . | . . . . . . . . . . . . . . . . . . . Effects 142 | . 3 5 21 14 17 36 19 8 . . 2 6 11 . . . . . Message Errors 30 | . 2 2 5 3 5 5 4 1 . . . 2 1 . . . . . Matter Fused 41 | . 1 3 8 2 3 10 7 2 . . 1 2 2 . . . . . Heat Flow Errors 17 | . . . 1 3 1 7 1 2 . . . 1 1 . . . . . Energy Discharges 16 | . . . 3 1 2 5 2 1 . . . . 2 . . . . . Parts Rejected 2 | . . . . . 1 1 . . . . . . . . . . . . Parts Fused 3 | . . . . 1 . . . 1 . . . . 1 . . . . . Data Loss (minor) 20 | . . . 3 2 4 3 4 . . . 1 1 2 . . . . . Data Loss (major) 6 | . . . . 1 . 2 . 1 . . . . 2 . . . . . Misfires 1 | . . . 1 . . . . . . . . . . . . . . . Alerts 4 | . . . . 1 1 1 1 . . . . . . . . . . . Weapon Failures 2 | . . . . . . 2 . . . . . . . . . . . . Overload Shots 4 | . . . . . . . 1 . . . . . 1 . 2 . . . Overflow Damage 15371 | . . 39 . . 179 198 . 326 . . 4 11 166 464 698 1046 947 11293 Projectiles 573 | . . . . . 18 . . . . . . 11 . 80 . 8 40 416 Explosions 10634 | . . 39 . . 18 . . . . . 4 . . . . . . 10573 Melee 4164 | . . . . . 143 198 . 326 . . . . 166 384 698 1038 907 304 Knockbacks 64 | . . . . 1 25 2 . . . . 11 . . 3 8 5 8 1 Impact 27 | . . . . . 1 2 . . . . . . . 3 7 5 8 1 Kinetic 34 | . . . . 1 22 . . . . . 11 . . . . . . . Secondary 3 | . . . . . 2 . . . . . . . . . 1 . . . Self-Inflicted Damage 425 | 19 20 26 . . 31 . . . 98 . 8 48 . . 56 . 74 45 Shots 33 | 1 1 1 . . 1 . . . 1 . 1 1 . . 6 . 16 4 Rammed 1 | . . . . . . . . . . . . . . . . . 1 . Targets Rammed 9 | . . . . 4 . . . . . . . 1 . . . . 2 2 Kicked 7 | . . . . 4 . . . . . . . 1 . . . . . 2 Crushed 1 | . . . . . . . . . . . . . . . . . 1 . Highest Temperature 650 | 7 150 12 144 232 650 226 170 258 263 . 649 307 332 344 16 . 394 402 Average Temperature 82 | 4 53 5 18 58 93 86 63 92 74 . 159 69 126 105 10 . 66 113 Received Heat Transfer 3260 | . 18 . 183 33 1142 350 18 . 99 . 258 138 . 525 . 7 151 338 Effects 17 | . . . . . 5 . . . . . 9 . . 2 . . . 1 Shutdowns 2 | . . . . . 1 . . . . . 1 . . . . . . . Energy Bleed 1 | . . . . . . . . . . . . . . . . . . 1 Interference 7 | . . . . . 2 . . . . . 3 . . 2 . . . . Matter Decay 1 | . . . . . 1 . . . . . . . . . . . . . Damage (major) 4 | . . . . . . . . . . . 4 . . . . . . . Damage (core) 2 | . . . . . 1 . . . . . 1 . . . . . . . Siege Activations . | . . . . . . . . . . . . . . . . . . . Martial Activations . | . . . . . . . . . . . . . . . . . . . Shielding Activations . | . . . . . . . . . . . . . . . . . . . Robots Disrupted 1 | . . . . . . . . . . . . 1 . . . . . . Combat Hostiles . | . . . . . . . . . . . . . . . . . . . Robots Corrupted 33 | . . . . . 2 4 . . . . . 3 . 2 9 5 7 1 Combat Hostiles 19 | . . . . . 2 3 . . . . . 2 . 2 4 4 1 1 Parts Fried 71 | . . . . . 6 8 . . 3 . . 3 . 1 16 16 17 1 Impact Corruptions 74 | . . . . . 2 8 . . . . . . . 6 18 16 21 3 Robots Melted 3 | . . . . 1 1 . . . . . . . . . . . 1 . Combat Hostiles 3 | . . . . 1 1 . . . . . . . . . . . 1 . Parts Melted 17 | . . . . 4 9 1 . . . . . 2 . . 1 . . . Heat Transferred 6535 | 50 50 . 555 278 2860 50 . 185 814 . 655 619 . . . . . 419 Parts Sabotaged . | . . . . . . . . . . . . . . . . . . . Parts Stolen . | . . . . . . . . . . . . . . . . . . . Parts Stripped . | . . . . . . . . . . . . . . . . . . . Power Chain Reactions 10 | 1 1 . . . . 1 . . . . 1 6 . . . . . . Alert | -11 -10 -10 -10 -7 -5 -5 -5 -5 -5 -4 -4 -3 -3 -3 -2 -2 -1 -1 ------- Run | Yrd Mat Min Sub Rec Fac Ext Cet Arc Hub Fac DSF Res Qua Sec Res Tes Acc Com Maximum Alert Level 5 | . . . . . 3 1 . 1 3 1 2 1 1 2 1 1 2 5 Low Security (%) 71 | 100 100 100 . 100 . 51 100 97 44 . . 85 98 68 42 41 62 . Level 1 18 | . . . . . 41 48 . 2 54 100 71 14 1 30 57 58 2 13 Level 2 7 | . . . . . 43 . . . . . 28 . . . . . 34 63 Level 3 1 | . . . . . 14 . . . 1 . . . . . . . . . Level 4 . | . . . . . . . . . . . . . . . . . . . Level 5 . | . . . . . . . . . . . . . . . . . . 23 High Security . | . . . . . . . . . . . . . . . . . . . Max Security . | . . . . . . . . . . . . . . . . . . . Sterilizations 1 | . . . . . . . . . . . 1 . . . . . . . Peak Influence 872 | 10 163 113 . 88 872 385 182 229 722 353 468 294 206 403 313 335 675 599 Initial 378 | . 3 31 . 9 336 378 12 47 . 353 202 263 164 . 194 175 154 360 Average 135 | 3 61 49 . 6 456 156 62 18 188 316 347 108 45 122 203 235 294 496 Influence Increases 13570 | 15 347 198 130 312 1618 507 404 302 991 36 326 663 298 1025 527 539 1492 3840 Destroy 0b10 Robot/C 5800 | . 180 120 100 100 760 300 180 80 240 . 240 260 . 160 160 220 380 2320 Destroy 0b10 Robot/NC 510 | 15 10 15 . 25 50 10 10 45 45 . 10 35 30 15 35 35 85 40 Destroy Leader 666 | . 40 20 . . 136 44 10 . 74 . 40 66 4 26 34 42 76 54 Allied During Kill 546 | . . . . 30 12 90 157 125 132 . . . . . . . . . Trap Triggered on 0b10 60 | . . . . . . . . . . . . . . . . . 60 . Successful Hack 629 | . 25 . . 23 68 28 . . . 36 . 71 30 30 64 92 162 . Select Force Hacks 120 | . . . . 120 . . . . . . . . . . . . . . Disable Machine 615 | . 15 . . . . 15 15 30 180 . . 60 75 150 . 60 . 15 Destroy Structure 2044 | . 62 43 . 14 52 20 32 22 290 . 36 36 24 44 9 30 24 1306 Advance Influence 300 | . . . . . 300 . . . . . . . . . . . . . Partial Spotted 345 | . . . . . . . . . . . . 15 45 90 60 30 75 30 Lose Combat Pursuer 1935 | . 15 . 30 . 240 . . . 30 . . 120 90 510 165 30 630 75 Influence Decreases 7908 | 10 267 213 116 233 880 861 297 349 269 100 60 634 462 679 408 456 1082 532 Time Decay 5113 | 10 247 213 106 193 550 464 250 329 172 100 . 604 198 269 238 446 502 222 Search Patrol Dispatched 300 | . . . . . . . . . . . . . . . . . 300 . Lost Part 770 | . 20 . 10 . 110 70 . . . . 60 20 . 100 10 10 50 310 Lost Ally 399 | . . . . 40 70 85 47 20 97 . . 10 10 10 10 . . . Purge Threat 1326 | . . . . . 150 242 . . . . . . 254 300 150 . 230 . Squads Dispatched 63 | . 1 . . . 14 . . . 6 . 1 10 . 9 5 3 9 5 Investigation 20 | . 1 . . . 7 . . . . . . 5 . 2 1 . 3 1 Extermination 9 | . . . . . 3 . . . 1 . . . . 2 1 1 1 . Reinforcement 33 | . . . . . 4 . . . 5 . 1 5 . 5 3 2 5 3 Assault 1 | . . . . . . . . . . . . . . . . . . 1 Garrison . | . . . . . . . . . . . . . . . . . . . Intercept . | . . . . . . . . . . . . . . . . . . . Searches Triggered 2 | . . . . . . . . . . . . . . . . . 2 . Construction Impeded 3 | . . . . . 2 . . . . . . 1 . . . . . . Haulers Reinforced 3 | . . . . . 1 . . . . . . . . . 1 . 1 . Active Scanning Responses . | . . . . . . . . . . . . . . . . . . . Cargo Convoy Interrupts . | . . . . . . . . . . . . . . . . . . . Stealth | -11 -10 -10 -10 -7 -5 -5 -5 -5 -5 -4 -4 -3 -3 -3 -2 -2 -1 -1 --------- Run | Yrd Mat Min Sub Rec Fac Ext Cet Arc Hub Fac DSF Res Qua Sec Res Tes Acc Com Distress Signals 31 | . 4 . . . 3 2 3 . 3 . . 7 . 3 2 1 3 . Communications Jammed 82 | . . . . . . . . . . . . . . 13 12 12 36 9 Distress Signals 68 | . . . . . . . . . . . . . . 13 12 12 22 9 Times Spotted 451 | . 17 6 17 7 67 15 11 7 15 . 12 38 13 71 29 19 68 39 Peak Tracking Total 20 | . 4 3 4 2 8 2 5 2 4 . 5 5 3 20 8 3 15 8 Tactical Retreats 59 | . 1 . 1 1 7 . . . 2 . . 4 2 14 5 2 17 3 Traps | -11 -10 -10 -10 -7 -5 -5 -5 -5 -5 -4 -4 -3 -3 -3 -2 -2 -1 -1 ------- Run | Yrd Mat Min Sub Rec Fac Ext Cet Arc Hub Fac DSF Res Qua Sec Res Tes Acc Com Traps Triggered 21 | . . . 1 . 2 2 . . . . . 3 1 . 3 . 8 1 Indirectly 4 | . . . . . 1 . . . . . . . . . 3 . . . Trap Hack Attempts . | . . . . . . . . . . . . . . . . . . . Triggered . | . . . . . . . . . . . . . . . . . . . Disarmed . | . . . . . . . . . . . . . . . . . . . Reprogrammed 6 | . . . . . . . . . . . . . . . . . 6 . Reused 6 | . . . . . . . . . . . . . . . . . 6 . Traps Extracted . | . . . . . . . . . . . . . . . . . . . Installed . | . . . . . . . . . . . . . . . . . . . Triggered 6 | . . . . . . . . . . . . . . . . . 6 . Most Traps Carried 1 | . . . 1 1 . . . . . . . . . . . . . . Machines | -11 -10 -10 -10 -7 -5 -5 -5 -5 -5 -4 -4 -3 -3 -3 -2 -2 -1 -1 ---------- Run | Yrd Mat Min Sub Rec Fac Ext Cet Arc Hub Fac DSF Res Qua Sec Res Tes Acc Com Machines Disabled 46 | . 1 . 5 . . 1 1 2 12 . . 4 5 10 . 4 . 1 Max in Single Turn 9 | . 1 . 3 . . 1 1 1 9 . . 1 1 1 . 1 . 1 Garrison Access 9 | . . . . . . . . . . . . 3 1 . 1 1 3 . Network Hub 1 | . . . . . . . . . 1 . . . . . . . . . Machines Repaired . | . . . . . . . . . . . . . . . . . . . Machines Dismantled . | . . . . . . . . . . . . . . . . . . . Machines Sabotaged . | . . . . . . . . . . . . . . . . . . . Overloaded Fab Kills . | . . . . . . . . . . . . . . . . . . . Hacking | -11 -10 -10 -10 -7 -5 -5 -5 -5 -5 -4 -4 -3 -3 -3 -2 -2 -1 -1 --------- Run | Yrd Mat Min Sub Rec Fac Ext Cet Arc Hub Fac DSF Res Qua Sec Res Tes Acc Com Machines Accessed 124 | . 6 . 1 10 11 10 1 . . 2 . 12 13 14 12 10 16 6 Terminals 82 | . 6 . . 5 5 9 1 . . 2 . 2 9 11 8 7 12 5 Fabricators 7 | . . . . . 3 . . . . . . 2 . . 1 1 . . Repair Stations 4 | . . . . . 1 . . . . . . 1 1 . . 1 . . Recycling Units 8 | . . . . 4 . 1 . . . . . 2 . . . . . 1 Scanalyzers 11 | . . . . . 2 . . . . . . 3 2 3 1 . . . Garrison Access 10 | . . . . . . . . . . . . 2 1 . 2 1 4 . Total Hacks 407 | . 14 . 4 21 35 29 2 . . 8 . 62 64 47 39 26 44 12 Successful 214 | . 5 . 4 12 21 14 . . . 4 . 41 43 28 13 12 17 . Failed 193 | . 9 . . 9 14 15 2 . . 4 . 21 21 19 26 14 27 12 Catastrophic 44 | . 3 . . 5 4 4 1 . . . . 2 1 3 7 1 7 6 Database Lockouts . | . . . . . . . . . . . . . . . . . . . Manual 126 | . 4 . . 8 8 7 1 . . 5 . 20 29 26 6 1 9 2 Terminals 284 | . 14 . . 10 13 27 2 . . 8 . 17 56 40 29 19 38 11 Fabricators 30 | . . . . . 11 . . . . . . 12 . . 4 3 . . Repair Stations 12 | . . . . . 3 . . . . . . 5 1 . . 3 . . Recycling Units 20 | . . . . 9 . 2 . . . . . 8 . . . . . 1 Scanalyzers 41 | . . . . . 8 . . . . . . 18 6 7 2 . . . Garrison Access 14 | . . . . . . . . . . . . 2 1 . 4 1 6 . Terminal Hacks 88 | . 5 . 4 4 3 10 . . . 2 . 5 19 11 6 6 13 . Record 5 | . . . 4 . . . . . . . . . 1 . . . . . Part Schematic 14 | . . . . 2 1 1 . . . . . 1 7 . 1 . 1 . Robot Analysis 5 | . 3 . . . . . . . . . . . . . 1 1 . . Prototype ID Bank 4 | . 1 . . . . 2 . . . . . . . 1 . . . . Open Door 11 | . . . . . . 3 . . . . . . 1 3 . . 4 . Open DSF 1 | . . . . . . . . . . 1 . . . . . . . . Level Access Points 1 | . . . . . . . . . . . . . . . . . 1 . Branch Access Points 3 | . . . . . 1 . . . . . . 1 . . 1 . . . Emergency Access Points 1 | . . . . . . . . . . . . . . . . 1 . . Machine Index 3 | . . . . . . . . . . . . 1 1 . . 1 . . Terminal Index 4 | . . . . . . . . . . 1 . . . 1 . 1 1 . Recycling Unit Index 1 | . . . . . . . . . . . . . . . . . 1 . Alert Level 1 | . . . . . . . . . . . . . 1 . . . . . Unreport Threat 11 | . . . . . 1 2 . . . . . . 3 2 1 . 2 . Locate Traps 6 | . . . . . . 2 . . . . . . . 1 1 1 1 . Reprogram Traps 1 | . . . . . . . . . . . . . . . . . 1 . Hauler Manifests 2 | . . . . . . . . . . . . 1 1 . . . . . Registered Components 1 | . . . . . . . . . . . . . . . 1 . . . Registered Prototypes 1 | . . . . . . . . . . . . . 1 . . . . . Zone Layout 10 | . 1 . . . . . . . . . . 1 3 3 . 1 1 . Release Object 2 | . . . . 2 . . . . . . . . . . . . . . Fabricator Hacks 22 | . . . . . 8 . . . . . . 8 . . 3 3 . . Network Status 3 | . . . . . 1 . . . . . . . . . 1 1 . . Load Schematic 11 | . . . . . 4 . . . . . . 5 . . 1 1 . . Build 8 | . . . . . 3 . . . . . . 3 . . 1 1 . . Repair Station Hacks 9 | . . . . . 2 . . . . . . 4 1 . . 2 . . Scan Component 2 | . . . . . . . . . . . . 1 . . . 1 . . Repair 2 | . . . . . . . . . . . . 1 . . . 1 . . Refit 5 | . . . . . 2 . . . . . . 2 1 . . . . . Recycling Unit Hacks 8 | . . . . 4 . . . . . . . 4 . . . . . . Report Inventory 5 | . . . . 3 . . . . . . . 2 . . . . . . Retrieve Components 3 | . . . . 1 . . . . . . . 2 . . . . . . Scanalyzer 31 | . . . . . 7 . . . . . . 11 6 6 1 . . . Insert Component 22 | . . . . . 4 . . . . . . 6 5 6 1 . . . Analyze 9 | . . . . . 3 . . . . . . 5 1 . . . . . Garrison Access Hacks 8 | . . . . . . . . . . . . 2 1 . 1 1 3 . Seal Access 8 | . . . . . . . . . . . . 2 1 . 1 1 3 . Unauthorized Hacks 48 | . . . . 4 1 4 . . . 2 . 7 16 11 2 . 1 . Terminals 35 | . . . . . . 4 . . . 2 . . 16 11 1 . 1 . Track 6 | . . . . . . . . . . . . . 3 3 . . . . Assimilate 6 | . . . . . . . . . . . . . 4 1 1 . . . Botnet 10 | . . . . . . 3 . . . 1 . . 3 2 . . 1 . Operators 3 | . . . . . . 1 . . . 1 . . 1 . . . . . Skim 10 | . . . . . . . . . . . . . 5 5 . . . . Fabricators 5 | . . . . . 1 . . . . . . 3 . . 1 . . . Prioritize 2 | . . . . . . . . . . . . 1 . . 1 . . . Recompile 3 | . . . . . 1 . . . . . . 2 . . . . . . Repair Stations . | . . . . . . . . . . . . . . . . . . . Recycling Units 8 | . . . . 4 . . . . . . . 4 . . . . . . Reject 1 | . . . . . . . . . . . . 1 . . . . . . Recyclers 1 | . . . . . . . . . . . . 1 . . . . . . Mask 2 | . . . . . . . . . . . . 2 . . . . . . Tunnel 4 | . . . . 4 . . . . . . . . . . . . . . Scanalyzers . | . . . . . . . . . . . . . . . . . . . Garrison Access . | . . . . . . . . . . . . . . . . . . . Data Cores Recovered 6 | . 1 . . . 1 . . . . . . 1 1 . . . 2 . Used 1 | . . . . . . . . . . . . . . . . . 1 . Hacking Detections 92 | . 6 . . 5 11 8 1 . . 1 . 8 8 9 10 7 12 6 Full Trace Events 18 | . 3 . . 2 5 . . . . . . 1 . 2 1 . 3 1 Feedback Events 2 | . 1 . . . . . . . . . . . . 1 . . . . Corruption 1 | . 1 . . . . . . . . . . . . . . . . . Hackware Fried 1 | . . . . . . . . . . . . . . 1 . . . . Feedback Blocked . | . . . . . . . . . . . . . . . . . . . Robot Schematics Acquired 1 | . . . . . . . . . . . . . . 1 . . . . Robots Built . | . . . . . . . . . . . . . . . . . . . Authchips . | . . . . . . . . . . . . . . . . . . . Time . | . . . . . . . . . . . . . . . . . . . Total Robot Build Rating . | . . . . . . . . . . . . . . . . . . . Part Schematics Acquired 22 | . . . . 2 4 1 . . . . . 5 8 . 1 . 1 . Parts Built 14 | . . . . . 6 . . . . . . 5 . . 2 1 . . Authchips 7 | . . . . . 2 . . . . . . 3 . . 1 1 . . Time 386 | . . . . . 159 . . . . . . 142 . . 39 46 . . Total Part Build Rating 96 | . . . . . 36 . . . . . . 37 . . 14 9 . . Parts Repaired 2 | . . . . . . . . . . . . 1 . . . 1 . . Time 144 | . . . . . . . . . . . . 108 . . . 36 . . Parts Recycled . | . . . . . . . . . . . . . . . . . . . Recycled Matter . | . . . . . . . . . . . . . . . . . . . Retrieved Matter . | . . . . . . . . . . . . . . . . . . . Retrieved Components 10 | . . . . 6 . . . . . . . 4 . . . . . . Parts Scanalyzed 10 | . . . . . 4 . . . . . . 5 1 . . . . . Part Schematics Acquired 8 | . . . . . 3 . . . . . . 4 1 . . . . . Parts Damaged 3 | . . . . . . . . . . . . 2 1 . . . . . Bothacking | -11 -10 -10 -10 -7 -5 -5 -5 -5 -5 -4 -4 -3 -3 -3 -2 -2 -1 -1 ------------ Run | Yrd Mat Min Sub Rec Fac Ext Cet Arc Hub Fac DSF Res Qua Sec Res Tes Acc Com Used RIF Installer . | . . . . . . . . . . . . . . . . . . . Robots Hacked 2 | . . . . . . . . 1 . . . . 1 . . . . . Non-combat . | . . . . . . . . . . . . . . . . . . . Combat 2 | . . . . . . . . 1 . . . . 1 . . . . . Robot Hacks Applied 3 | . . . . . . . . 1 . . . . 2 . . . . . parse_system 2 | . . . . . . . . 1 . . . . 1 . . . . . find_scanalyzer 1 | . . . . . . . . . . . . . 1 . . . . . Relay Couplers Released 3 | . . . . . . . . . . . . 3 . . . . . . Machine Destruction 3 | . . . . . . . . . . . . 3 . . . . . . Fabnet Peak Effective % . | . . . . . . . . . . . . . . . . . . . Robots Rewired 22 | . . . . 12 . 9 . . . . . 1 . . . . . . Allies Hacked . | . . . . . . . . . . . . . . . . . . . Hacks Repelled . | . . . . . . . . . . . . . . . . . . . Allies | -11 -10 -10 -10 -7 -5 -5 -5 -5 -5 -4 -4 -3 -3 -3 -2 -2 -1 -1 -------- Run | Yrd Mat Min Sub Rec Fac Ext Cet Arc Hub Fac DSF Res Qua Sec Res Tes Acc Com Total Allies 36 | . . . . 12 . 14 5 . . . . 1 2 1 1 . . . Largest Group 10 | . . . . 10 5 8 8 7 5 . . 1 2 1 1 . . . Highest-Rated Group 662 | . . . . 266 136 364 662 652 464 . . 23 36 10 26 . . . Highest-Rated Ally 159 | . . . . 40 40 159 159 156 96 . . 23 26 10 26 . . . Total Orders 5 | . . . . . . . . . . . . 1 4 . . . . . STAY 2 | . . . . . . . . . . . . . 2 . . . . . FOLLOW 2 | . . . . . . . . . . . . . 2 . . . . . DROP 1 | . . . . . . . . . . . . 1 . . . . . . Ally Attacks 287 | . . . . 58 18 62 86 25 38 . . . . . . . . . Total Damage 7585 | . . . . 1144 252 1126 2848 881 1334 . . . . . . . . . Kills 40 | . . . . 6 4 7 13 3 7 . . . . . . . . . Allies Corrupted . | . . . . . . . . . . . . . . . . . . . Allies Melted 1 | . . . . . . . . . 1 . . . . . . . . . Intel | -11 -10 -10 -10 -7 -5 -5 -5 -5 -5 -4 -4 -3 -3 -3 -2 -2 -1 -1 ------- Run | Yrd Mat Min Sub Rec Fac Ext Cet Arc Hub Fac DSF Res Qua Sec Res Tes Acc Com Active Infowar (turns) 10777 | 6 204 . . . . . . 3724 90 217 112 1522 624 812 517 1113 1356 480 Optics 332 | . . . . . . . . . . . . . . . 331 1 . . Sensors 9325 | . . . . . . . . 3724 90 217 112 1522 584 532 450 906 1152 36 Terrain 2417 | . . . . . . . . . . . . . . . 205 1054 1158 . Seismic 210 | 6 204 . . . . . . . . . . . . . . . . . Cloaking 1 | . . . . . . . . . . . . . 1 . . . . . Jamming 4287 | . . . . . . . . . . . . . 39 789 513 1110 1356 480 Robot Analysis Total 5 | . 3 . . . . . . . . . . . . . 1 1 . . Derelict Logs Recovered 1 | . . . 1 . . . . . . . . . . . . . . . Drone Launches . | . . . . . . . . . . . . . . . . . . . Drone Recoveries . | . . . . . . . . . . . . . . . . . . . Exploration | -11 -10 -10 -10 -7 -5 -5 -5 -5 -5 -4 -4 -3 -3 -3 -2 -2 -1 -1 ------------- Run | Yrd Mat Min Sub Rec Fac Ext Cet Arc Hub Fac DSF Res Qua Sec Res Tes Acc Com Turns Passed 24745 | 70 749 465 3009 2973 1585 1722 799 4840 388 218 489 2283 643 919 517 1113 1356 607 Spaces Moved 16353 | 53 510 243 1698 1083 1032 719 347 642 106 108 154 1872 1395 1608 1149 1053 2044 537 Core 297 | 3 . . . 73 . . . 221 . . . . . . . . . . Treads 3882 | . . . . . . 60 347 421 86 55 153 32 . . . 876 1852 . Legs 2051 | . . . . 751 156 400 . . 20 53 1 125 . . . 6 2 537 Wheels 2801 | 50 510 243 1698 259 41 . . . . . . . . . . . . . Hover 1170 | . . . . . 775 182 . . . . . . . . . 23 190 . Flight 6152 | . . . . . 60 77 . . . . . 1715 1395 1608 1149 148 . . Fastest Speed 23 | 50 80 150 150 50 45 41 132 148 191 191 199 27 27 23 26 26 46 46 Average Speed 108 | 78 123 150 166 231 92 135 176 673 262 195 199 47 27 27 26 42 46 46 Slowest Speed 1600 | 80 150 150 180 360 228 220 236 1600 279 199 199 199 27 37 28 113 85 132 Overloaded Moves 30 | . . . . . . . . . . . . . . 30 . . . . Propulsion Burnouts . | . . . . . . . . . . . . . . . . . . . Robots Hopped 40 | . . . . . . . . . . . . 6 12 19 3 . . . Cave-ins Triggered . | . . . . . . . . . . . . . . . . . . . Teleports 1 | . . . . . . . . . . . . . . . . . . 1 Exploration Rate (%) 58 | 3 83 68 95 99 20 58 68 97 20 4 78 39 81 80 41 94 58 25 Regions Visited 18 Branch Regions 11 Pre-discovered Areas 8 | . . 1 2 4 . . . . . . . . . 1 . . . . Known Exits Taken 12 | . . . . . 1 1 1 1 1 1 . 1 1 1 1 1 1 . Unknown Exits Taken 5 | 1 1 1 1 1 . . . . . . . . . . . . . . Scrap Searched 8 | . . . 8 . . . . . . . . . . . . . . . Spaces Dug 113 | . 10 37 1 1 9 5 . . . . . . 14 11 3 9 8 5 Terrain Destroyed 1512 | 4 71 70 41 4 9 18 . 3 203 . 26 19 16 28 3 10 8 979 Melee 55 | . . . . . 9 3 . . . . . . 11 11 2 8 6 5 Projectile 150 | . . . 2 4 . 9 . 3 26 . 26 . 5 17 1 2 2 53 AOE 1307 | 4 71 70 39 . . 6 . . 177 . . 19 . . . . . 921 Terrain Rammed . | . . . . . . . . . . . . . . . . . . . Walls Destroyed . | . . . . . . . . . . . . . . . . . . . Machines Disabled . | . . . . . . . . . . . . . . . . . . . Actions | -11 -10 -10 -10 -7 -5 -5 -5 -5 -5 -4 -4 -3 -3 -3 -2 -2 -1 -1 --------- Run | Yrd Mat Min Sub Rec Fac Ext Cet Arc Hub Fac DSF Res Qua Sec Res Tes Acc Com Total 21952 | 76 578 302 1812 1516 1482 1369 478 1130 166 116 254 3110 1591 1971 1294 1640 2307 760 Wait 3357 | 3 5 19 32 242 162 405 52 433 25 . 19 1020 108 230 57 422 86 37 Move 16259 | 52 509 242 1697 1082 1031 718 346 641 105 107 153 1860 1370 1572 1142 1052 2043 537 Hop 36 | . . . . . . . . . . . . 5 12 16 3 . . . Pick Up 246 | 10 16 . 11 17 46 27 12 8 4 2 5 33 6 20 5 12 6 6 Fast Attach 183 | 4 1 . 6 1 15 5 1 7 . 1 4 12 19 16 14 31 25 21 Attach 125 | 1 3 . 3 1 24 12 4 3 . 1 6 8 . 17 5 8 9 20 Detach 45 | . . . . . 8 5 4 1 . . 3 2 1 5 3 4 4 5 Swap 133 | . 7 6 7 1 12 7 3 2 3 3 1 30 8 8 9 7 12 7 Drop 348 | 1 4 2 13 23 43 23 17 12 3 2 7 43 26 22 14 47 26 20 Fire 558 | 5 33 33 43 20 95 34 9 10 26 . 56 94 7 11 4 9 51 18 Melee 432 | . . . . . 46 39 30 13 . . . . 34 54 38 48 43 87 Ram . | . . . . . . . . . . . . . . . . . . . Kick 7 | . . . . 4 . . . . . . . 1 . . . . . 2 Crush 2 | . . . . . . . . . . . . . . . . . 2 . Escape Stasis 11 | . . . . . . 11 . . . . . . . . . . . . Rewire 210 | . . . . 125 . 83 . . . . . 2 . . . . . . Trap . | . . . . . . . . . . . . . . . . . . . Miscellaneous . | . . . . . . . . . . . . . . . . . . . Route ------- -11/Scrapyard -10/Materials (discovered 2 exits: [*Mat] / [*Min]) -10/Mines (discovered 3 exits: [*Mat x2] / *Sub) -10/Subcaves (discovered 3 exits: [*Mat x2] / *Rec) -7/Recycling -5/Factory (discovered 6 exits: *Fac x2 / Upp x2 / *Ext x2) -5/Extension (discovered 2 exits: *Fac / *Cet) -5/Cetus (discovered 2 exits: *Fac / *Arc) -5/Archives (discovered 3 exits: *Fac / *Hub x2) -5/Hub_04(d) -4/Factory -4/DSF -3/Research (discovered 4 exits: *Res / Arm / *Qua x2) -3/Quarantine (discovered 2 exits: *Res / *Sec) -3/Section 7 -2/Research (discovered 5 exits: *Acc x3 / *Tes x2) -2/Testing -1/Access (discovered 2 exits: Sur / *Com) -1/Command (discovered 1 exit: [*Ac0]) History --------- Turn | Location | Event 8 | -11/Scrapyard | Discovered new exit (range 15) 71 | -11/Scrapyard | Entered Materials 315 | -10/Materials | Build established: Mutant 355 | -10/Materials | Discovered new exit (range 8) 774 | -10/Materials | Discovered new exit (range 15) 820 | -10/Materials | Entered Mines 937 | -10/Mines | Discovered new exit (range 7) 940 | -10/Mines | Learned location of Storage (-7) 1073 | -10/Mines | Discovered new exit (range 9) 1278 | -10/Mines | Discovered new exit (range 6) 1285 | -10/Mines | Entered Subcaves 1323 | -10/Subcaves | Shifting Twisted Machinery released Battle Rifle 1435 | -10/Subcaves | Learned location of Zion (-6) 1435 | -10/Subcaves | Met a Zionite searching for "candidates" 1438 | -10/Subcaves | Learned 4 Materials zone layouts 1478 | -10/Subcaves | Visited 4L-MR0's lab 1498 | -10/Subcaves | Found Prototype Device 1498 | -10/Subcaves | Identified Power Bank 1499 | -10/Subcaves | Attached Power Bank, gained temporary slots: Power x3 1780 | -10/Subcaves | Visited Clippyterm 1785 | -10/Subcaves | Learned location of Section 7 (-3) 1785 | -10/Subcaves | Learned Factory garrison access intel 1913 | -10/Subcaves | Shifting Twisted Machinery released Scrap Shield 1920 | -10/Subcaves | Shifting Twisted Machinery released Sub. Machine Gun 2077 | -10/Subcaves | Discovered new exit (range 12) 2176 | -10/Subcaves | Disturbed a concealed Subdweller 2177 | -10/Subcaves | Core integrity fell below 50% 2539 | -10/Subcaves | Shifting Twisted Machinery released Piercing Trap 2836 | -10/Subcaves | Shifting Twisted Machinery released Sub. Optics 3300 | -10/Subcaves | Build established: Scavenger-Mutant 3331 | -10/Subcaves | Discovered new exit (range 15) 3447 | -10/Subcaves | Discovered new exit (range 16) 4294 | -10/Subcaves | Entered Recycling 5133 | -7/Recycling | Build established: Commander-Mutant 6399 | -7/Recycling | Scanned before Scraplab entrance 6419 | -7/Recycling | Angered Scraplab inhabitants 6432 | -7/Recycling | Core integrity fell below 20% 6488 | -7/Recycling | Lost 3 allies 6560 | -7/Recycling | Found Prototype Device 6594 | -7/Recycling | Identified Scrap Engine 6994 | -7/Recycling | Build established: Commander-Construct 7232 | -7/Recycling | Discovered new exit (range 16) 7267 | -7/Recycling | Entered Factory 7267 | -5/Factory | Accompanied by 5 allies 7267 | -5/Factory | Evolved 10 slots: Power x1, Propulsion x2, Utility x6, Weapon x1 7268 | -5/Factory | Loaded intel: 4 garrison access locations 7400 | -5/Factory | Fabricated Gyrokinetic Inverter (x2) 7461 | -5/Factory | Fabricated Gyrokinetic Inverter? 7514 | -5/Factory | Lost 4 allies 8094 | -5/Factory | Build established: Construct 8237 | -5/Factory | Fabricated Tesla Rifle (x2) 8414 | -5/Factory | Lost 5 parts (3u2w) 8545 | -5/Factory | Discovered new exit (range 5) 8549 | -5/Factory | Identified exit to Factory 8555 | -5/Factory | Discovered exit to Factory (range 16) 8626 | -5/Factory | Core integrity fell below 50% 8777 | -5/Factory | Identified exit to Upper Caves 8777 | -5/Factory | Identified exit to Extension 8852 | -5/Factory | Entered Extension 9033 | -5/Extension | Lost 4 parts (1p1n2u) 9059 | -5/Extension | Rescued a captive Derelict 9143 | -5/Extension | Build established: Mutant 9736 | -5/Extension | Rescued A7 9874 | -5/Extension | Build established: Commander-Construct 10212 | -5/Extension | Rescued a captive Derelict 10214 | -5/Extension | Rescued a captive Derelict 10356 | -5/Extension | Rescued a captive Derelict 10525 | -5/Extension | Discovered exit to Factory (range 10) 10527 | -5/Extension | Discovered new exit (range 6) 10572 | -5/Extension | Identified exit to Cetus 10574 | -5/Extension | Entered Cetus 10574 | -5/Cetus | Accompanied by 8 allies (A7) 10579 | -5/Cetus | Acquired a Cetus Manufacturing Module code from A7 10603 | -5/Cetus | Spotted Cetus Guard 10603 | -5/Cetus | Spotted Cetus Guard 10610 | -5/Cetus | Spotted Cetus Guard 10610 | -5/Cetus | Spotted Cetus Guard 10612 | -5/Cetus | Allies destroyed Cetus Guard 10632 | -5/Cetus | Allies destroyed Cetus Guard 10632 | -5/Cetus | Allies destroyed Cetus Guard 10638 | -5/Cetus | Allies destroyed Cetus Guard 10665 | -5/Cetus | Lost 5 allies 10734 | -5/Cetus | Started Cetus Manufacturing Module 10759 | -5/Cetus | Manufactured an Enhanced Grunt 10784 | -5/Cetus | Manufactured an Enhanced Grunt 10809 | -5/Cetus | Manufactured an Enhanced Grunt 10834 | -5/Cetus | Manufactured an Enhanced Grunt 10859 | -5/Cetus | Manufactured an Enhanced Grunt 10937 | -5/Cetus | Discovered new exit (range 15) 10977 | -5/Cetus | Spotted Cetus Guard 10977 | -5/Cetus | Spotted Cetus Guard 10983 | -5/Cetus | Spotted Cetus Guard 10984 | -5/Cetus | Spotted Cetus Guard 10991 | -5/Cetus | Allies destroyed Cetus Guard 11003 | -5/Cetus | Allies destroyed Cetus Guard 11003 | -5/Cetus | Allies destroyed Cetus Guard 11004 | -5/Cetus | Allies destroyed Cetus Guard 11016 | -5/Cetus | Discovered exit to Factory (range 15) 11028 | -5/Cetus | Met Revision 17 11171 | -5/Cetus | Identified exit to Archives 11305 | -5/Cetus | System corruption reached 10% 11311 | -5/Cetus | Escorted A7 to Cetus Mainframe 11324 | -5/Cetus | Security sweep announced 11373 | -5/Cetus | Entered Archives 11373 | -5/Archives | Accompanied by 7 allies (A7) 11378 | -5/Archives | Received a hacking code to weaken MAIN.C 11472 | -5/Archives | Discovered exit to Factory (range 15) 11647 | -5/Archives | Discovered new exit (range 15) 11708 | -5/Archives | Discovered new exit (range 14) 15073 | -5/Archives | Identified exit to Hub_04(d) 16213 | -5/Archives | Entered Hub_04(d) 16213 | -5/Hub_04(d) | Accompanied by 5 allies 16438 | -5/Hub_04(d) | Lost 4 allies 16477 | -5/Hub_04(d) | Discovered exit to Factory (range 10) 16489 | -5/Hub_04(d) | Core integrity fell below 20% 16595 | -5/Hub_04(d) | Network Hub disabled 16601 | -5/Hub_04(d) | Entered Factory 16601 | -4/Factory | Evolved 2 slots: Propulsion x1, Utility x1 16691 | -4/Factory | Build established: Construct 16818 | -4/Factory | Identified exit to DSF 16819 | -4/Factory | Entered DSF 16857 | -4/DSF | Additional patrols routed to DSF 17058 | -4/DSF | Lost 4 parts (1p1n1u1w) 17172 | -4/DSF | Sterilization system engaged 17192 | -4/DSF | Ambient heat levels rising (+10) 17192 | -4/DSF | Discovered new exit (range 13) 17207 | -4/DSF | Ambient heat levels rising (+10) 17222 | -4/DSF | Ambient heat levels rising (+10) 17237 | -4/DSF | Ambient heat levels rising (+10) 17252 | -4/DSF | Ambient heat levels rising (+10) 17267 | -4/DSF | Ambient heat levels rising (+10) 17278 | -4/DSF | Identified exit to Research 17282 | -4/DSF | Ambient heat levels rising (+10) 17297 | -4/DSF | Ambient heat levels rising (+10) 17308 | -4/DSF | Entered Research 17308 | -3/Research | Evolved 2 slots: Propulsion x1, Utility x1 17508 | -3/Research | Revision forces began assault on 0b10 17526 | -3/Research | Identified exit to Armory 17526 | -3/Research | Identified exit to Quarantine 17556 | -3/Research | Met up with Revision 17++ 17668 | -3/Research | Build established: Hacker-Construct 17787 | -3/Research | Spotted B-86 Titan 17851 | -3/Research | Spotted B-86 Titan 18000 | -3/Research | Repaired Centrium Medium Armor Plating? 18008 | -3/Research | Research terminal network offline 18024 | -3/Research | Lost 4 allies 18081 | -3/Research | Fabricated Hvy. Disruptor Cannon? 18116 | -3/Research | Fabricated Hvy. Disruptor Cannon (x2) 18174 | -3/Research | Fabricated Exp. Q-thruster (x1) 18313 | -3/Research | Discovered new exit (range 5) 18313 | -3/Research | Identified exit to Research 18992 | -3/Research | Spotted Striker 19013 | -3/Research | Destroyed Striker 19147 | -3/Research | Build established: Hacker-Skirmisher 19434 | -3/Research | Spotted Striker 19449 | -3/Research | Destroyed Striker 19591 | -3/Research | Entered Quarantine 19615 | -3/Quarantine | Found Prototype Device 19615 | -3/Quarantine | Identified Exp. EM Disruption Field 19628 | -3/Quarantine | Found Alien Energy Cannon 19748 | -3/Quarantine | Found Unknown Launcher 19748 | -3/Quarantine | Identified Gamma Bomb Array 19795 | -3/Quarantine | Found Alien Artifact 19814 | -3/Quarantine | Build established: Hacker-Sprinter 19856 | -3/Quarantine | Learned Testing emergency access door positions 19916 | -3/Quarantine | Discovered exit to Research (range 15) 19919 | -3/Quarantine | Learned 4 Access zone layouts 19923 | -3/Quarantine | Identified Phase Armor 19923 | -3/Quarantine | Identified Core Cannon 19945 | -3/Quarantine | Found Alien Artifact 19970 | -3/Quarantine | Learned Research trap positions 20010 | -3/Quarantine | Learned Research non-interactive machine intel 20039 | -3/Quarantine | Learned Research trap positions 20055 | -3/Quarantine | Spotted Alpha 7 20072 | -3/Quarantine | Found Alien Launcher 20079 | -3/Quarantine | Loaded intel: 2 trap records 20091 | -3/Quarantine | Identified Sigix Terminator 20091 | -3/Quarantine | Identified Subatomic Replicator 20128 | -3/Quarantine | Learned Testing stockpile data 20214 | -3/Quarantine | Spotted Fortress 20233 | -3/Quarantine | Discovered new exit (range 6) 20234 | -3/Quarantine | Identified exit to Section 7 20234 | -3/Quarantine | Entered Section 7 20248 | -3/Section 7 | Spotted S7 Guard 20261 | -3/Section 7 | Found Alien Artifact 20398 | -3/Section 7 | Found Alien Artifact 20459 | -3/Section 7 | Destroyed S7 Guard 20630 | -3/Section 7 | Identified Core Membrane 20630 | -3/Section 7 | Identified Integrity Redistributor 20630 | -3/Section 7 | Installed Core Membrane, gained immunity to corruption 20636 | -3/Section 7 | Discovered exit to Research (range 7) 20666 | -3/Section 7 | Spotted B-86 Titan 20679 | -3/Section 7 | Found Alien Artifact 20690 | -3/Section 7 | Identified Core Reset Matrix 20704 | -3/Section 7 | Spotted Alpha 7 20705 | -3/Section 7 | Spotted Alpha 7 20715 | -3/Section 7 | Found Alien Artifact 20718 | -3/Section 7 | Lost 5 parts (1n2u2w) 20723 | -3/Section 7 | Found Alien Artifact 20747 | -3/Section 7 | Found Alien Artifact 20858 | -3/Section 7 | Identified Integrated Reactor (x2) 20858 | -3/Section 7 | Identified Integrated Dissipator 20862 | -3/Section 7 | Installed Integrated Reactor, increased core energy generation (+10) 20864 | -3/Section 7 | Installed Integrated Reactor, increased core energy generation (+10) 20865 | -3/Section 7 | Installed Integrated Dissipator, increased core heat dissipation (+20) 20903 | -3/Section 7 | Learned Testing trap positions 20913 | -3/Section 7 | Spotted S7 Guard 20927 | -3/Section 7 | Found Alien Artifact 20940 | -3/Section 7 | Learned Quarantine scanalyzer intel 20963 | -3/Section 7 | Spotted B-99 Colossus 20966 | -3/Section 7 | Learned Research terminal intel 20986 | -3/Section 7 | Learned Access stockpile data 20987 | -3/Section 7 | Learned location of Quarantine (-3) 20988 | -3/Section 7 | Found Alien Artifact 20988 | -3/Section 7 | Identified LRC Storage 20988 | -3/Section 7 | Installed LRC Storage, increased inventory capacity (+2) 20990 | -3/Section 7 | Found LRC Storage 20990 | -3/Section 7 | Installed LRC Storage, increased inventory capacity (+2) 20995 | -3/Section 7 | Learned location of 2 exits from Research 21011 | -3/Section 7 | Learned 8 Research zone layouts 21041 | -3/Section 7 | Found Alien Reactor 21041 | -3/Section 7 | Identified Matter Drive 21043 | -3/Section 7 | Found Alien Artifact 21044 | -3/Section 7 | Found Alien Artifact 21046 | -3/Section 7 | Found Alien Artifact 21055 | -3/Section 7 | Spotted Executioner 21055 | -3/Section 7 | Spotted Executioner 21073 | -3/Section 7 | Core integrity fell below 50% 21095 | -3/Section 7 | Identified Core Physics Calibrator 21095 | -3/Section 7 | Imp. Hacking Suite fried by hacking feedback 21153 | -3/Section 7 | Entered Research 21153 | -2/Research | Evolved 2 slots: Power x1, Weapon x1 21154 | -2/Research | Identified exit to Access 21156 | -2/Research | Loaded intel: 67 trap records 21157 | -2/Research | Loaded intel: 53 non-interactive machine locations 21158 | -2/Research | Loaded intel: 22 terminal locations 21449 | -2/Research | Identified Transdimensional Reconstructor (x3) 21455 | -2/Research | Identified exit to Testing 21460 | -2/Research | Spotted B-90 Cyclops 21535 | -2/Research | Found Prototype Processor 21535 | -2/Research | Identified Exp. Core Analyzer 21619 | -2/Research | Fabricated Hvy. Disruptor Cannon (x2) 21670 | -2/Research | Entered Testing 21671 | -2/Testing | Loaded intel: 20 trap records 21714 | -2/Testing | Repaired Centrium Medium Armor Plating 21736 | -2/Testing | Fabricated Hvy. Shield Leg (x1) 21921 | -2/Testing | Found Prototype Processor 21921 | -2/Testing | Identified Spectral Analyzer 21936 | -2/Testing | Spotted PY-ULP660XTGV 21952 | -2/Testing | Found Prototype Ballistic Gun 21952 | -2/Testing | Identified Hyp. Multirail 21989 | -2/Testing | Found Prototype Device 21989 | -2/Testing | Identified Exp. Thermal Defense Suite 22141 | -2/Testing | Build established: Assassin 22292 | -2/Testing | Found Prototype Device 22292 | -2/Testing | Identified Exp. Focal Shield 22295 | -2/Testing | Found Unknown Device 22295 | -2/Testing | Identified Quantum Capacitor 22350 | -2/Testing | Found Prototype Device 22350 | -2/Testing | Identified Exp. Transmission Jammer 22440 | -2/Testing | Found Prototype Device 22440 | -2/Testing | Identified Exp. Hardlight Generator 22570 | -2/Testing | Discovered exit to Access (range 12) 22783 | -2/Testing | Entered Access 22783 | -1/Access | Evolved 2 slots: Utility x2 23150 | -1/Access | Build established: Construct 23280 | -1/Access | Identified exit to Surface 23323 | -1/Access | Spotted B-99 Colossus 23688 | -1/Access | Destroyed 7 combat bots 23783 | -1/Access | Search patrols dispatched 23995 | -1/Access | Spotted B-99 Colossus 24033 | -1/Access | Search patrols dispatched 24110 | -1/Access | Discovered new exit (range 8) 24113 | -1/Access | Identified exit to Command 24139 | -1/Access | Entered Command 24253 | -1/Command | Build established: Mutant 24467 | -1/Command | Lost 7 parts (1p2n2u2w) 24573 | -1/Command | Spotted Combat Programmer 24600 | -1/Command | Used Subatomic Replicator to create Alien Artifact 24606 | -1/Command | Fired Sigix Terminator 24606 | -1/Command | MAIN.C activated Command garrisons 24627 | -1/Command | Destroyed 88 combat bots 24630 | -1/Command | Met MAIN.C 24633 | -1/Command | 0b10 Conduit disabled 24666 | -1/Command | Destroyed MAIN.C Shell 24670 | -1/Command | Found Prototype Protection 24670 | -1/Command | Identified Centrium Heavy Armor Plating 24687 | -1/Command | Spotted Striker 24704 | -1/Command | Spotted Striker 24716 | -1/Command | Core integrity fell below 50% 24720 | -1/Command | Destroyed Striker 24734 | -1/Command | Core integrity fell below 20% 24745 | -1/Command | Used Integrity Redistributor, redistributed integrity to core (+117) 24746 | -1/Command | Identified Supercharged TR 24746 | -1/Command | Warped through subspace to slip node 24746 | -1/Command | Discovered new exit (range 3) 24746 | -1/Command | Destroyed Striker 24746 | -1/Command | Core destroyed Last Messages --------------- 24742_ Slug penetrates Heavy Barrier. 24742_ Slug penetrates 0b10 Conduit. 24742_ Penetrated by Slug. 24742_ Slug penetrates H-88 Terminator. 24743_ Beam penetrates MAIN.C. 24743_ Core Membrane filtered system corruption (1). 24743_ Nova Cannon destroyed. 24745_ Integrity redistributed to core (+117). 24745_ Penetrated by Slug. 24745_ Slug penetrates 0b10 Conduit. 24745_ Imp. Quantum Reactor destroyed. 24745_ Flying QT-Biometal Exoskeleton destroyed. 24745_ Arm. Scrap Engine damaged due to network destabilization (-9). 24746_ Identified Supercharged TR. 24746_ Warped through subspace, drawn to slip node. 24746_ EXIT=FOUND 24746_ Penetrated by Slug. 24746_ Dimensional Slip Node implodes. 24746_ Striker destroyed. 24746_ H-88 Terminator destroyed. Map ----- +----------------------------------------------------+ | ????????????????????????????????? | | ????????????????????????????????? | | ????????????????????????????????? | | ????????????????????????????????? | | ????????????????????????????????? | | ????????????????????????????????? | | ????????????????????????????????? | | ????????????????????????????????? | | ????????????????????????????????? | | ????????????????????????????????? | | ????????????????????????????????? | | ????????????????????????????????? | | ????????????????????????????????? | | ????????????????????????????????? | | ????????????????????????????????? | | ????????????????????????????????? | | ????????????????????????????????? | | ????????????????????????????????? | | ????????????????????????????????? | | ????????????????????????????????? | | ????????????????????????????????? | | ????????????????????????????????? | | ???????####?????????????????????? | | ??????## p#?????????????????????? | | ?????## x ?????????????????????? | | ?????# h@M ?????????????????????? | | ?????# ?????????????????????? | | ?????# #?????????????????????? | | ?????# < #?????????????????????? | | ?????# #?????????????????????? | | ?????# ##?????????????????????? | | ?????#####??????????????????????? | | ????????????????????????????????? | | ????????????????????????????????? | | ????????????????????????????????? | | ????????????????????????????????? | | ????????????????????????????????? | | ????????????????????????????????? | | ????????????????????????????????? | | ????????????????????????????????? | | ????????????????????????????????? | | ????????????????????????????????? | | ????????????????????????????????? | | ????????????????????????????????? | | ????????????????????????????????? | | ????????????????????????????????? | | ????????????????????????????????? | | ????????????????????????????????? | | ????????????????????????????????? | | ????????????????????????????????? | +----------------------------------------------------+ Best States ------------- Heat Dissipation 110 Energy Generation 73 Energy Capacity 1713 Matter Stores 300 Matter Capacity 700 Sight Range 20 Robot Scan Range 18 Terrain Scan Range 24 Terrain Scan Density 10 Jamming Range 22 Armor Coverage 675 Resistance: TH 30 Resistance: EM 75 Weapon Shielding 66 Melee Speed Boost 40 Evasion (%) 69 Targeting Accuracy 8 Melee Accuracy 6 Target Analysis 8 Core Analysis 8 Armor Integrity Analysis 30 Recoil Reduction 6 Energy Filtering 50 Particle Charging 25 Offensive Hacking 36 Defensive Hacking 14 Authchip Count 5 Item Schematics ----------------- Imp. Hacking Suite | -7/Recycling | Hacked Gyrokinetic Inverter | -7/Recycling | Hacked Energy Filter | -5/Factory | Scanalyzed Hvy. Laser | -5/Factory | Scanalyzed Tesla Rifle | -5/Factory | Scanalyzed Adv. Shield Generator | -5/Factory | Hacked Thunder Leg | -5/Extension | Hacked Exp. Q-thruster | -3/Research | Hacked Hvy. Disruptor Cannon | -3/Research | Scanalyzed Com. HERF Cannon | -3/Research | Scanalyzed Centrium Medium Armor Plating | -3/Research | Scanalyzed Imp. Diametric Drive | -3/Research | Scanalyzed Prc. Energy Filter | -3/Quarantine | Scanalyzed Cld. Fission Core | -3/Quarantine | Hacked Centrium Leg | -3/Quarantine | Hacked Biometal Heavy Treads | -3/Quarantine | Hacked Particle Reactor | -3/Quarantine | Hacked Quantum Reactor | -3/Quarantine | Hacked Cmb. Linear Gravjet | -3/Quarantine | Hacked Graviton Reactor | -3/Quarantine | Hacked Hvy. Shield Leg | -2/Research | Hacked Adv. Heavy Siege Treads | -1/Access | Hacked Robot Schematics ------------------ M-30 Cleanser | -3/Section 7 | Archive Fabricated ------------ Gyrokinetic Inverter | x2 | -5/Factory | Authchip Gyrokinetic Inverter | x2 | -5/Factory Tesla Rifle | x2 | -5/Factory | Authchip Hvy. Disruptor Cannon | x2 | -3/Research | Authchip Hvy. Disruptor Cannon | x2 | -3/Research | Authchip Exp. Q-thruster | x1 | -3/Research | Authchip Hvy. Disruptor Cannon | x2 | -2/Research | Authchip Hvy. Shield Leg | x1 | -2/Testing | Authchip Repaired ---------- Centrium Medium Armor Plating | 48% | -3/Research Centrium Medium Armor Plating | 53% | -2/Testing Alien Tech Used ----------------- Phase Armor Core Membrane Integrated Reactor Integrated Dissipator Core Cannon LRC Storage Matter Drive Subatomic Replicator Sigix Terminator Integrity Redistributor Supercharged TR Achievements -------------- None Challenges ------------ None Game ------ Seed ArmoredMatterEngine Manual? 0 Play Time 07:58:47 Cumulative 573.0 hours Start 2024.11.17 @ 17:51:09 End 2024.11.19 @ 03:37:23 Sessions 7 Manual Loads 0 Difficulty Rogue Special Mode None Game No. 224 Rogue 219 Adventurer 4 Explorer 1 Win Type - Total 9 Types 6/1/0/1/0/1/0/0/0 Lore% 91 Gallery% 92 Achievement% 87 Wizard Run 0 Options --------- Layout 0 ASCII 0 Keyboard 0 Movement Numpad Keybinds 0 Fullscreen 2 Font 18/CogNarrow Map View 76x50 Zoom Use 0% Tactical HUD 1 Map Filters NONE Filters NONE Steam 1 RUN: 3f98e7db-0266-4be3-bcdc-697fd18cb698